Cogmind - Beta 10.1 @@@ ROGUE MODE // 2020.10.27 @ 20:00:10 Player: Atherys Result: Destroyed by G-47 Trooper with Particle Gun Performance ------------- Evolutions (0) 0 Regions Visited (1) 200 Robots Destroyed (14) 70 Value Destroyed (248) 248 Prototype IDs (0) 0 Alien Tech Used (0) 0 Bonus (0) 0 TOTAL SCORE: 518 Bonus ------- None Cogmind --------- Core Integrity 0/250 Matter 300/300 Energy 250/250 System Corruption 1% Temperature Cool (80) Movement Walking (120) Location -10/Materials Parts ------- > --- POWER (1) -------- Ion Engine > --- PROPULSION (2) --- Aluminum Leg > --- UTILITY (2) ------ Small Storage Unit Utility Shielding > --- WEAPON (2) ------- (None) > --- INVENTORY (6) ---- Heat Sink Small Storage Unit EM Pulse Gun Small Laser Peak State ------------ > --- POWER ------------ Ion Engine > --- PROPULSION ------- Light Treads Light Treads > --- UTILITY ---------- Small Storage Unit > --- WEAPON ----------- EM Pulse Gun Medium Laser > --- INVENTORY -------- (None) [Rating: 6] Favorites ----------- Power Ion Engine Engine Ion Engine Propulsion Light Treads Treads Light Treads Leg Aluminum Leg Utility Small Storage Unit Device Heat Sink Storage Small Storage Unit Protection Utility Shielding Weapon Light Assault Rifle Energy Gun Medium Laser Energy Cannon Beam Cannon Ballistic Gun Light Assault Rifle Special Weapon Welding Torch Build | -11 -10 ------- Run | Scr Mat Slots Evolved . | . . Power . | . . Propulsion . | . . Utility . | . . Weapon . | . . Parts Attached 16 | 7 9 Power 2 | 1 1 Engine 2 | 1 1 Core . | . . Reactor . | . . Propulsion 3 | 2 1 Treads 2 | 2 . Leg 1 | . 1 Wheel . | . . Hover . | . . Flight . | . . Utility 4 | 1 3 Device 1 | . 1 Storage 2 | 1 1 Processor . | . . Hackware . | . . Protection 1 | . 1 Artifact . | . . Weapon 7 | 3 4 Energy Gun 4 | 2 2 Energy Cannon 1 | . 1 Ballistic Gun 1 | 1 . Ballistic Cannon . | . . Launcher . | . . Special Weapon 1 | . 1 Impact Weapon . | . . Slashing Weapon . | . . Piercing Weapon . | . . Special Melee Weapon . | . . Unidentified Prototypes . | . . Parts Lost 8 | . 8 Power 1 | . 1 Propulsion 2 | . 2 Utility . | . . Weapon 5 | . 5 Highest Loss Streak 4 | . 4 Average Slot Usage (%) 74 | . 74 Engine 11 | . 11 Treads 16 | . 16 Leg 4 | . 4 Device 6 | . 6 Storage 15 | . 15 Protection 1 | . 1 Energy Gun 7 | . 7 Energy Cannon 1 | . 1 Ballistic Gun 5 | . 5 Special Weapon 3 | . 3 Naked Turns . | . . Heaviest Build 15 | 13 15 Greatest Support 40 | 40 40 Greatest Overweight (x) 1 | . 1 Average Overweight (x) . | . . Largest Inventory Capacity 8 | 6 8 Average Capacity 6 | 5 6 Most Carried 4 | 1 4 Average Carried 1 | . 1 Final Capacity 6 | 6 6 Final Carried 4 | 1 4 Class Distribution -------------------- 72% | Mutant 27% | Scavenger-Mutant Dominant Class ---------------- Mutant | -10/Materials Resources | -11 -10 ----------- Run | Scr Mat Matter Collected 315 | 115 200 Remotely . | . . Salvage Created 399 | . 399 Parts 26 | . 26 Haulers Intercepted . | . . Recyclers Shooed . | . . Parts Field Recycled . | . . Retrieved Matter . | . . Parts Self-Destructed . | . . Prevented . | . . Kills | -11 -10 ------- Run | Scr Mat Combat Hostiles Destroyed 9 | . 9 Melee 3 | . 3 Guns 6 | . 6 Classes Destroyed 5 | . 5 Worker 3 | . 3 Builder 1 | . 1 Recycler 1 | . 1 Swarmer 3 | . 3 Grunt 6 | . 6 Best Kill Streak 3 | . 3 Combat Bots Only 3 | . 3 Max Kills in Single Turn 1 | . 1 Gunslinging . | . . Exploded . | . . Melee 1 | . 1 Uniques/NPCs Destroyed . | . . Combat | -11 -10 -------- Run | Scr Mat Damage Taken 1059 | . 1059 Core 254 | . 254 Absorbed by Shields . | . . Core Remaining (%) 100 | 100 . Volleys Fired 64 | . 64 Largest 2 | . 2 Hottest 70 | . 70 Shots Fired 80 | . 80 Gun 66 | . 66 Cannon 10 | . 10 Launcher . | . . Special 4 | . 4 Kinetic 36 | . 36 Thermal 44 | . 44 Explosive . | . . Electromagnetic . | . . Robot Hit Streak 10 | . 10 Robot Miss Streak 6 | . 6 Penetration Max . | . . Secondary Targets . | . . Shots Hit Robots 48 | . 48 Core Hits 29 | . 29 Critical Hits . | . . Critical Kills . | . . Critical Parts Destroyed . | . . Melee Attacks . | . . Impact . | . . Slashing . | . . Piercing . | . . Sneak Attacks . | . . Combat Hostiles . | . . Follow-up Attacks . | . . Damage Inflicted 520 | . 520 Guns 377 | . 377 Cannons 88 | . 88 Explosions . | . . Melee . | . . Ramming 50 | . 50 Kinetic 204 | . 204 Thermal 266 | . 266 Explosive . | . . Electromagnetic . | . . Impact . | . . Slashing . | . . Piercing . | . . Highest Corruption 1 | . 1 Average Corruption 1 | . 1 Corruption Purged . | . . Effects 1 | . 1 Energy Discharges 1 | . 1 Overload Shots . | . . Overflow Damage . | . . Projectiles . | . . Explosions . | . . Melee . | . . Knockbacks . | . . Impact . | . . Kinetic . | . . Secondary . | . . Self-Inflicted Damage 12 | . 12 Shots . | . . Rammed 22 | . 22 Targets Rammed 26 | . 26 Kicked 2 | . 2 Crushed 2 | . 2 Highest Temperature 216 | . 216 Average Temperature 89 | . 89 Received Heat Transfer 444 | . 444 Effects 1 | . 1 Interference 1 | . 1 Siege Activations . | . . Robots Corrupted . | . . Combat Hostiles . | . . Parts Fried . | . . Impact Corruptions . | . . Robots Melted . | . . Combat Hostiles . | . . Parts Melted . | . . Heat Transferred 682 | . 682 Parts Sabotaged . | . . Parts Stolen . | . . Parts Stripped . | . . Power Chain Reactions . | . . Missiles Intercepted . | . . Alert | -11 -10 ------- Run | Scr Mat Peak Influence 190 | . 190 Initial . | . . Average 65 | . 75 Maximum Alert Level . | . . Low Security (%) 100 | 100 100 Level 1 . | . . Level 2 . | . . Level 3 . | . . Level 4 . | . . Level 5 . | . . High Security . | . . Max Security . | . . Squads Dispatched 3 | . 3 Investigation 2 | . 2 Extermination . | . . Reinforcement 1 | . 1 Assault . | . . Garrison . | . . Intercept . | . . Construction Impeded . | . . Haulers Reinforced . | . . Stealth | -11 -10 --------- Run | Scr Mat Distress Signals 2 | . 2 Communications Jammed . | . . Distress Signals . | . . Times Spotted 15 | . 15 Peak Tracking Total 4 | . 4 Tactical Retreats 1 | . 1 Traps | -11 -10 ------- Run | Scr Mat Traps Triggered 5 | . 5 Indirectly . | . . Trap Hack Attempts . | . . Triggered . | . . Disarmed . | . . Reprogrammed . | . . Reused . | . . Traps Extracted . | . . Installed . | . . Triggered . | . . Machines | -11 -10 ---------- Run | Scr Mat Machines Disabled . | . . Max in Single Turn . | . . Machines Sabotaged . | . . Garrisons Compromised . | . . Overloaded Fab Kills . | . . Fab Network Shutdowns . | . . Hacking | -11 -10 --------- Run | Scr Mat Machines Accessed . | . . Terminals . | . . Fabricators . | . . Repair Stations . | . . Recycling Units . | . . Scanalyzers . | . . Garrison Access . | . . Total Hacks . | . . Successful . | . . Failed . | . . Catastrophic . | . . Database Lockouts . | . . Manual . | . . Terminals . | . . Fabricators . | . . Repair Stations . | . . Recycling Units . | . . Scanalyzers . | . . Garrison Access . | . . Terminal Hacks . | . . Fabricator Hacks . | . . Repair Station Hacks . | . . Recycling Unit Hacks . | . . Scanalyzer . | . . Garrison Access Hacks . | . . Unauthorized Hacks . | . . Terminals . | . . Fabricators . | . . Repair Stations . | . . Recycling Units . | . . Scanalyzers . | . . Garrison Access . | . . Data Cores Recovered . | . . Used . | . . Hacking Detections . | . . Full Trace Events . | . . Feedback Events . | . . Feedback Blocked . | . . Robot Schematics Acquired . | . . Robots Built . | . . Matter . | . . Time . | . . Total Robot Build Rating . | . . Part Schematics Acquired . | . . Parts Built . | . . Matter . | . . Time . | . . Total Part Build Rating . | . . Parts Repaired . | . . Time . | . . Parts Recycled . | . . Recycled Matter . | . . Retrieved Matter . | . . Retrieved Components . | . . Parts Scanalyzed . | . . Part Schematics Acquired . | . . Parts Damaged . | . . Bothacking | -11 -10 ------------ Run | Scr Mat Used RIF Installer . | . . Robots Hacked . | . . Non-combat . | . . Combat . | . . Robot Hacks Applied . | . . Relay Couplers Released . | . . Robots Rewired . | . . Allies Hacked . | . . Hacks Repelled . | . . Allies | -11 -10 -------- Run | Scr Mat Total Allies . | . . Largest Group . | . . Highest-Rated Group . | . . Highest-Rated Ally . | . . Total Orders . | . . Ally Attacks . | . . Total Damage . | . . Kills . | . . Allies Corrupted . | . . Allies Melted . | . . Intel | -11 -10 ------- Run | Scr Mat Robot Analysis Total . | . . Derelict Logs Recovered . | . . Drone Launches . | . . Drone Recoveries . | . . Exploration | -11 -10 ------------- Run | Scr Mat Turns Passed 693 | 97 596 Spaces Moved 324 | 57 267 Core 25 | 4 21 Treads 203 | 53 150 Legs 96 | . 96 Wheels . | . . Hover . | . . Flight . | . . Fastest Speed 50 | 50 100 Average Speed 151 | 152 151 Slowest Speed 160 | 160 160 Overloaded Moves . | . . Propulsion Burnouts . | . . Robots Hopped . | . . Cave-ins Triggered . | . . Exploration Rate (%) 22 | 5 40 Regions Visited 1 Branch Regions . Pre-discovered Areas . | . . Known Exits Taken . | . . Unknown Exits Taken 1 | 1 . Scrap Searched . | . . Spaces Dug . | . . Terrain Destroyed . | . . Melee . | . . Projectile . | . . AOE . | . . Terrain Rammed . | . . Walls Destroyed . | . . Machines Disabled . | . . Actions | -11 -10 --------- Run | Scr Mat Total 438 | 64 374 Wait 5 | . 5 Move 323 | 56 267 Hop . | . . Pick Up . | . . Fast Attach 16 | 7 9 Attach . | . . Detach 4 | 1 3 Swap . | . . Drop . | . . Fire 64 | . 64 Melee . | . . Ram 10 | . 10 Kick 6 | . 6 Crush 10 | . 10 Escape Stasis . | . . Rewire . | . . Trap . | . . Miscellaneous . | . . Route ------- -11/Scrapyard -10/Materials (discovered 3 exits: [*Mat x2] / [*Min]) History --------- Turn | Location | Event 50 | -11/Scrapyard | Discovered new exit (range 15) 98 | -11/Scrapyard | Entered Materials 154 | -10/Materials | Discovered new exit (range 7) 263 | -10/Materials | Discovered new exit (range 16) 300 | -10/Materials | Build established: Mutant 407 | -10/Materials | Discovered new exit (range 15) 430 | -10/Materials | Core integrity fell below 50% 488 | -10/Materials | Lost 4 parts (1p2n1w) 491 | -10/Materials | Core integrity fell below 20% 694 | -10/Materials | Destroyed by G-47 Trooper with Particle Gun Last Messages --------------- 00549_ K-01 Serf destroyed. 00560_ Acquired Sml. Storage Unit. 00566_ Extracted 10 matter. 00619_ Acquired Utility Shielding. 00628_ Acquired Beam Cannon. 00653_ Triggered Alarm Trap. 00653_ An alarm sounds. 00653_ ALERT: Alarm triggered, dispatching investigation squad. 00681_ Overheating: System interference. 00681_ Beam Cannon temporarily disabled. 00684_ Welding Torch destroyed. 00686_ Slammed into G-34 Mercenary. 00686_ Destabilizing: Core damaged (-10). 00687_ Slammed into G-34 Mercenary. 00689_ Slammed into G-47 Trooper. 00689_ Destabilizing: Core damaged (-7). 00690_ Kicked G-47 Trooper out of the way. 00692_ Slammed into G-47 Trooper. 00692_ Beam Cannon destroyed. 00693_ Kicked G-47 Trooper out of the way. Map ----- +----------------------------------------------------+ | # # #????# #???????????? | | # # #????### #???????????? | | # ?# #??????# #???????????? | | # ?# #??????# #???????????? | | ###??# #??????# #???????????? | | ?????# #??????# #???????????? | | ?????# #??????# ###########?? | | ?????# #??????# # #?? | | ?????# #??????# # """ #?? | | ?????# ######## # "T" #?? | | ?????# # #?? | | ?????# < + """ """ #?? | | ?????# # """ """!#?? | | ?????############ # """ """ #?? | | ????????????????# # #?? | | ????????????????# #######+###?? | | ????########????# #?????# #???? | | ????# #????# #????## ##### | | ????# #????# #????# | | ????#""" !#???## ##???# | | ????#"Y #???# ##### " | | ????#""" #???# " """ | | ????# #???# """ | | ???#####;#######u """" | | ???# g g #### ^ "" | | ???# @% ###### =##??# % | | ???# # ###??# %#???# ! | | ???# #! !#??# !#???# | | ???# #! !#??# #???# | | ???#####!!!!##??# #???# =% | | ???????######???# #???###+##### | | ????????????????# #?????? ???? | | ????????????????###!#?????? ???? | | ??????????????????#%#?????? ??? | | ??????????#######?#!#?????? !!??? | | ??????????# #?#=#?????? ! ?? | | ??????????# %!### #?????? ?? | | ??????????# %%%* =#??????? ? | | ??????????# % %#####??????? ? | | ??????????# %%%#???????????##### | | ??????????#######???????????????? | | ????????????????????????????????? | | ????????????????????????????????? | | ????????????????????????????????? | | | | | | | | | | | | | +----------------------------------------------------+ Best States ------------- Heat Dissipation 35 Energy Generation 10 Energy Capacity 250 Matter Stores 300 Matter Capacity 300 Sight Range 16 Terrain Scan Density 10 Utility Shielding 33 Evasion (%) 40 Recoil Reduction 2 Item Schematics ----------------- None Robot Schematics ------------------ None Fabricated ------------ Nothing Alien Tech Used ----------------- None Achievements -------------- None Challenges ------------ None Game ------ Seed LinearLauncherRipper Manual? 0 Play Time 00:07:00 Cumulative 11.3 hours Start 2020.10.27 @ 19:54:29 End 2020.10.27 @ 20:00:10 Sessions 1 Manual Loads 0 Difficulty Rogue Special Mode None Game No. 14 Rogue 14 Adventurer 0 Explorer 0 Win Type - Total 0 Types 0/0/0/0/0/0/0/0/0 Lore% 19 Gallery% 18 Achievement% 17 Wizard Run 0 Options --------- ASCII 0 Keyboard 1 Movement Numpad Keybinds 0 Fullscreen 2 Font 18/SmallcapsGlow Map View 76x50 Tactical HUD 1 Map Filters NONE Filters NONE Steam X RUN: 6b6192fa-ed57-4a73-8187-b75747e10a26